bitfinex/quotes_BTCUSD_20251205
["timestamp","ask_amount","ask_price","bid_price","bid_amount"]
[1764944138204,1.06451952,90575.0,90574.0,0.0003264]
[1764944138809,1.02512034,90575.0,90574.0,0.0003264]
[1764944139880,1.06452276,90575.0,90574.0,0.0003264]
[1764944140207,1.02512034,90575.0,90574.0,0.0003264]
[1764944140425,1.1348254,90575.0,90574.0,0.0003264]
[1764944140645,1.17422782,90575.0,90574.0,0.0003264]
[1764944140975,1.1348254,90575.0,90574.0,0.0003264]
[1764944142030,1.1173054,90575.0,90574.0,0.0003264]
[1764944142222,1.1348254,90575.0,90574.0,0.0003264]
[1764944143279,1.17422505,90575.0,90574.0,0.0003264]
[1764944143527,1.06451999,90575.0,90574.0,0.0003264]
[1764944143732,1.02512034,90575.0,90574.0,0.0003264]
[1764944146615,1.02512034,90575.0,90560.0,0.20079867]
[1764944146616,1.34914458,90561.0,90560.0,0.20079867]
[1764944146833,1.53365158,90561.0,90560.0,0.20079867]
[1764944147042,1.69262254,90561.0,90560.0,0.20079867]
[1764944147248,1.65323895,90561.0,90560.0,0.20079867]
[1764944147702,1.54353389,90561.0,90560.0,0.20079867]
[1764944147927,1.5653846,90561.0,90560.0,0.20079867]
[1764944148144,1.45225089,90561.0,90560.0,0.20079867]
[1764944148357,1.47677089,90561.0,90560.0,0.20079867]
[1764944148569,1.50629616,90561.0,90560.0,0.20079867]
[1764944148791,0.7952149,90561.0,90560.0,0.20079867]
[1764944148971,0.80247168,90561.0,90560.0,0.20079867]
[1764944149612,0.80047168,90561.0,90560.0,0.20079867]
[1764944149760,0.80347168,90561.0,90560.0,0.20079867]
[1764944149962,0.91317674,90561.0,90560.0,0.20079867]
[1764944150198,0.91717674,90561.0,90560.0,0.20079867]
[1764944150399,0.91417674,90561.0,90560.0,0.20079867]
[1764944150729,0.97469973,90561.0,90560.0,0.20079867]
[1764944150875,0.97469973,90561.0,90550.0,0.0004]
[1764944150876,2.62789696,90551.0,90550.0,0.0004]
[1764944151110,2.80332317,90551.0,90550.0,0.0004]
[1764944151317,2.84274317,90551.0,90550.0,0.0004]
[1764944152541,2.73303811,90551.0,90550.0,0.00111238]
[1764944153182,2.73603811,90551.0,90550.0,0.00111238]
[1764944153605,2.74003811,90551.0,90550.0,0.00111238]
[1764944154404,2.75028938,90551.0,90550.0,0.00111238]
[1764944154957,2.77979536,90551.0,90550.0,0.00111238]
[1764944155193,2.88950042,90551.0,90550.0,0.00111238]
[1764944157312,2.85999444,90551.0,90550.0,0.00111238]
[1764944157521,2.8894924,90551.0,90550.0,0.00111238]
[1764944158334,2.85999444,90551.0,90550.0,0.00111238]
[1764944158540,2.88949827,90551.0,90550.0,0.00111238]
[1764944159460,2.85999444,90551.0,90550.0,0.00111238]
[1764944160159,1.86805645,90551.0,90550.0,0.00111238]
[1764944160345,1.88557645,90551.0,90550.0,0.00111238]
[1764944161033,1.87857645,90551.0,90550.0,0.00111238]
[1764944161237,1.88057645,90551.0,90550.0,0.00111238]
[1764944161447,1.86305645,90551.0,90550.0,0.00111238]
[1764944161664,1.94309944,90551.0,90550.0,0.00111238]
[1764944162094,1.97260247,90551.0,90550.0,0.00111238]
[1764944162526,1.97460247,90551.0,90550.0,0.00111238]
[1764944163167,1.62143339,90551.0,90550.0,0.00111238]
[1764944164455,1.60391339,90551.0,90550.0,0.00111238]
[1764944164672,1.62129977,90551.0,90550.0,0.00111238]
[1764944165089,1.68382276,90551.0,90550.0,0.00111238]
[1764944165303,1.71332579,90551.0,90550.0,0.00111238]
[1764944165526,1.82303085,90551.0,90550.0,0.00111238]
[1764944166152,1.81903085,90551.0,90550.0,0.00111238]
[1764944166418,1.82603085,90551.0,90550.0,0.00111238]
[1764944167058,1.82602194,90551.0,90550.0,0.00111238]
[1764944167283,1.79651891,90551.0,90550.0,0.00111238]
[1764944168599,1.77501494,90551.0,90550.0,0.00111238]
[1764944168822,1.02946286,90551.0,90550.0,0.00111238]
[1764944169241,1.05896505,90551.0,90550.0,0.00111238]
[1764944169682,1.02946286,90551.0,90550.0,0.00111238]
[1764944169900,1.05196505,90551.0,90550.0,0.00111238]
[1764944170154,1.16567011,90551.0,90550.0,0.00111238]
[1764944170374,1.13616792,90551.0,90550.0,0.00111238]
[1764944170826,1.13316792,90551.0,90550.0,0.00111238]
[1764944171044,1.16567923,90551.0,90550.0,0.00111238]
[1764944171255,1.13616792,90551.0,90550.0,0.00111238]
[1764944174481,1.02646286,90551.0,90550.0,0.00111238]
[1764944175475,1.06579714,90551.0,90550.0,0.00111238]
[1764944176261,1.02646286,90551.0,90550.0,0.00111238]
[1764944179346,1.08553824,90551.0,90550.0,0.00111238]
[1764944180247,1.02646286,90551.0,90550.0,0.00111238]
[1764944180449,1.13616792,90551.0,90550.0,0.00111238]
[1764944180689,1.1952433,90551.0,90550.0,0.00111238]
[1764944181002,1.13616792,90551.0,90550.0,0.00111238]
[1764944181773,1.19869091,90551.0,90550.0,0.00111238]
[1764944186440,1.21200091,90551.0,90550.0,0.00111238]
[1764944187175,1.27119025,90551.0,90550.0,0.00111238]
[1764944187334,1.21200091,90551.0,90550.0,0.00111238]
[1764944192766,1.10229585,90551.0,90550.0,0.00111238]
[1764944193359,1.02225286,90551.0,90550.0,0.00111238]
[1764944193618,1.09901255,90551.0,90550.0,0.00111238]
[1764944193829,1.09801255,90551.0,90550.0,0.00111238]
[1764944194198,1.03877286,90551.0,90550.0,0.00111238]
[1764944194370,1.03577286,90551.0,90550.0,0.00111238]
[1764944194577,1.03877286,90551.0,90550.0,0.00111238]
[1764944194909,1.03977286,90551.0,90550.0,0.00111238]
[1764944195106,1.14647792,90551.0,90550.0,0.00111238]
[1764944195619,1.14947792,90551.0,90550.0,0.00111238]
[1764944196160,1.12797395,90551.0,90550.0,0.00111238]
[1764944196361,1.20875058,90551.0,90550.0,0.00111238]
[1764944196570,1.09904552,90551.0,90550.0,0.00111238]
[1764944197204,1.09909321,90551.0,90550.0,0.00111238]
[1764944202958,1.03982055,90551.0,90550.0,0.00111238]
[1764944203496,0.5348912,90551.0,90550.0,0.00111238]
[1764944203701,0.0380512,90551.0,90550.0,0.28863769]
[1764944203858,0.0041054,90551.0,90550.0,0.28863769]
[1764944204282,0.0011054,90551.0,90550.0,0.28863769]
[1764944204482,0.0001054,90551.0,90550.0,0.28863769]
[1764944204728,0.0021054,90551.0,90550.0,0.28863769]
[1764944205065,0.0041054,90551.0,90550.0,0.30663769]
[1764944205218,0.0021054,90551.0,90550.0,0.30663769]
[1764944205801,0.0021054,90551.0,90550.0,0.26730769]
[1764944205985,0.0021054,90551.0,90550.0,0.24159769]
[1764944206190,0.0021054,90551.0,90550.0,0.02072525]
[1764944206630,0.2229754,90551.0,90550.0,0.02072525]
[1764944206805,0.0021054,90551.0,90550.0,0.02072525]
[1764944207012,0.2399154,90551.0,90550.0,0.02072525]
[1764944207240,0.32176624,90551.0,90550.0,0.02072525]
[1764944207567,0.34958767,90551.0,90550.0,0.02072525]
[1764944207911,0.2906837,90551.0,90550.0,0.02072525]
[1764944208122,0.28850937,90551.0,90550.0,0.02072525]
[1764944208324,0.2670054,90551.0,90550.0,0.02072525]
[1764944208504,0.3219254,90551.0,90550.0,0.02072525]
[1764944208701,0.36710767,90551.0,90550.0,0.01911238]
[1764944208908,1.64194767,90551.0,90550.0,0.01911238]
[1764944209348,1.65222215,90551.0,90550.0,0.01911238]
[1764944209578,1.47961515,90551.0,90550.0,0.01911238]
[1764944209779,1.46588315,90551.0,90550.0,0.00111238]
[1764944209920,1.46388315,90551.0,90550.0,0.00111238]
[1764944210154,1.35213921,90551.0,90550.0,0.00311238]
[1764944211022,1.33063524,90551.0,90550.0,0.00311238]
[1764944211205,1.22093018,90551.0,90550.0,0.00311238]
[1764944211386,0.95399618,90551.0,90550.0,0.00311238]
[1764944211571,0.92620267,90551.0,90550.0,0.00311238]
[1764944211774,0.3487837,90551.0,90550.0,0.22559769]
[1764944211981,0.3487837,90551.0,90550.0,0.29063769]
[1764944211982,0.3251054,90551.0,90550.0,0.29063769]
[1764944213836,0.3231054,90551.0,90550.0,0.29063769]
[1764944214822,0.3231054,90551.0,90550.0,0.28863769]
[1764944215038,0.0001054,90551.0,90550.0,0.28863769]
[1764944215240,0.0021054,90551.0,90550.0,0.30863769]
[1764944221048,0.0021054,90551.0,90550.0,0.08776525]
[1764944221278,0.0021054,90551.0,90550.0,0.24359769]
[1764944221471,0.0021054,90551.0,90550.0,0.02272525]
[1764944221639,0.2229754,90551.0,90550.0,0.02272525]
[1764944222643,0.2373654,90551.0,90550.0,0.02272525]
[1764944222853,0.35605833,90551.0,90550.0,0.02111238]
[1764944223090,0.33744937,90551.0,90550.0,0.02111238]
[1764944224102,0.33544937,90551.0,90550.0,0.00111238]
[1764944224541,0.0176254,90551.0,90550.0,0.02790238]
[1764944224890,0.0422054,90551.0,90550.0,0.00311238]
[1764944225097,0.2995554,90551.0,90550.0,0.00311238]
[1764944225292,0.32522022,90551.0,90550.0,0.00311238]
[1764944225626,0.43492528,90551.0,90550.0,0.00311238]
[1764944225820,0.32522022,90551.0,90550.0,0.00311238]
[1764944226790,0.32522022,90551.0,90550.0,0.00271238]
[1764944227225,0.34672419,90551.0,90550.0,0.00271238]
[1764944227409,0.32522022,90551.0,90550.0,0.00271238]
[1764944228058,0.34672419,90551.0,90550.0,0.00271238]
[1764944228224,0.32522022,90551.0,90550.0,0.00271238]
[1764944228622,0.34672419,90551.0,90550.0,0.00271238]
[1764944231141,0.28874022,90551.0,90550.0,0.00271238]
[1764944231317,0.0196254,90551.0,90550.0,0.22358482]
[1764944231628,0.3015554,90551.0,90550.0,0.00271238]
[1764944231758,0.32305937,90551.0,90550.0,0.00271238]
[1764944231955,0.34672419,90551.0,90550.0,0.00271238]
[1764944233691,0.2404954,90551.0,90550.0,0.00271238]
[1764944234239,0.36561509,90551.0,90550.0,0.00271238]
[1764944234569,0.3015554,90551.0,90550.0,0.00271238]
[1764944236346,0.3199154,90551.0,90550.0,0.00271238]
[1764944240259,0.34141937,90551.0,90550.0,0.00271238]
[1764944240464,1.81586254,90551.0,90550.0,0.00271238]
[1764944240699,1.83952736,90551.0,90550.0,0.00271238]
[1764944240935,1.94923242,90551.0,90550.0,0.00271238]
[1764944241151,2.33475541,90551.0,90550.0,0.00271238]
[1764944241918,2.33275541,90551.0,90550.0,0.00271238]
[1764944242126,2.33575541,90551.0,90550.0,0.00271238]
[1764944242568,2.37228112,90551.0,90550.0,0.00271238]
[1764944242775,2.37670429,90551.0,90550.0,0.00271238]
[1764944243331,2.37670429,90551.0,90550.0,0.00071238]
[1764944243534,2.37970429,90551.0,90550.0,0.00071238]
[1764944243986,2.37970429,90551.0,90550.0,0.00171238]
[1764944244191,2.34017858,90551.0,90550.0,0.00171238]
[1764944244363,2.34017858,90551.0,90550.0,0.00071238]
[1764944244508,2.32465858,90551.0,90550.0,0.00071238]
[1764944244706,2.34217858,90551.0,90550.0,0.00071238]
[1764944246006,2.34217139,90551.0,90550.0,0.00071238]
[1764944247615,2.16552017,90551.0,90550.0,0.00071238]
[1764944248075,2.16252017,90551.0,90550.0,0.00071238]
[1764944248596,2.16552017,90551.0,90550.0,0.00071238]
[1764944249045,1.88935817,90551.0,90550.0,0.00071238]
[1764944249750,1.87183817,90551.0,90550.0,0.00071238]
[1764944249928,1.99906323,90551.0,90550.0,0.00071238]
[1764944250133,1.99706323,90551.0,90550.0,0.00071238]
[1764944251397,1.91383223,90551.0,90550.0,0.00071238]
[1764944252561,1.89631223,90551.0,90550.0,0.00071238]
[1764944252743,1.40298417,90551.0,90550.0,0.00071238]
[1764944253939,1.40298417,90551.0,90550.0,0.00171238]
[1764944254536,1.39998417,90551.0,90550.0,0.00171238]
[1764944254906,1.40298417,90551.0,90550.0,0.00171238]
[1764944255113,1.51268923,90551.0,90550.0,0.00171238]
[1764944255327,1.55370825,90551.0,90550.0,0.00171238]
[1764944255477,1.61473793,90551.0,90550.0,0.00171238]
[1764944255685,1.61473275,90551.0,90550.0,0.00171238]
[1764944255885,1.57521222,90551.0,90550.0,0.00171238]
[1764944256248,1.57221222,90551.0,90550.0,0.00071238]
[1764944256494,1.57521222,90551.0,90550.0,0.00071238]
[1764944256720,1.57621222,90551.0,90550.0,0.00071238]
[1764944258038,1.63548488,90551.0,90550.0,0.00071238]
[1764944258241,1.55869222,90551.0,90550.0,0.00071238]
[1764944258439,1.57621222,90551.0,90550.0,0.00071238]
[1764944261609,2.62794576,90531.0,90502.0,0.01104947]
[1764944261816,2.11798056,90531.0,90511.0,0.01786]
[1764944262027,1.81010957,90531.0,90514.0,0.2320079]
[1764944262221,1.83973061,90531.0,90514.0,0.01104801]
[1764944262425,1.83973061,90531.0,90513.0,0.01104813]
[1764944262802,1.81010957,90531.0,90513.0,0.01104813]
[1764944263007,1.93638198,90531.0,90513.0,0.01104813]
[1764944263209,1.96599697,90531.0,90513.0,0.01104813]
[1764944263576,1.85629191,90531.0,90513.0,0.01104813]
[1764944263851,1.85629191,90531.0,90511.0,0.02890838]
[1764944264059,1.85629191,90531.0,90511.0,0.01104838]
[1764944264290,1.85629191,90531.0,90513.0,0.01104813]
[1764944264511,1.47903891,90531.0,90514.0,0.01104801]
[1764944264713,1.48203891,90531.0,90513.0,0.01104813]
[1764944264896,1.45242392,90531.0,90512.0,0.23201132]
[1764944265132,1.48202292,90531.0,90510.0,0.0114485]
[1764944265278,1.59172798,90531.0,90510.0,0.23241815]
[1764944265631,1.59172798,90531.0,90510.0,0.0114485]
[1764944265788,1.59172798,90531.0,90510.0,0.23241633]
[1764944265994,1.59172798,90531.0,90512.0,0.01104825]
[1764944266207,1.59172798,90531.0,90511.0,0.23201563]
[1764944266408,1.59172798,90531.0,90513.0,0.23201078]
[1764944266409,1.56212898,90531.0,90513.0,0.23201078]
[1764944266616,1.56212898,90531.0,90514.0,0.23200748]
[1764944266818,1.56212898,90531.0,90513.0,0.02945813]
[1764944267075,1.56212898,90531.0,90513.0,0.01841]
[1764944267076,1.59172798,90531.0,90513.0,0.01841]
[1764944267216,1.59172798,90531.0,90530.0,0.00099386]
[1764944267442,1.56212898,90531.0,90530.0,0.00099386]
[1764944268666,1.62465197,90531.0,90530.0,0.00099386]
[1764944269022,1.62907607,90531.0,90530.0,0.00099386]
[1764944269929,1.62907607,90531.0,90530.0,3.86e-06]
[1764944270092,1.62907607,90531.0,90510.0,0.0004]
[1764944270093,0.56547158,90511.0,90510.0,0.0004]
[1764944270300,2.6402964,90511.0,90510.0,0.0004]
[1764944270519,2.68766062,90511.0,90510.0,0.0004]
[1764944270679,2.68766062,90511.0,90510.0,0.00099406]
[1764944271016,2.70422797,90511.0,90510.0,0.00099406]
[1764944271250,2.81393303,90511.0,90510.0,0.00099406]
[1764944271454,2.80366881,90511.0,90510.0,0.00099406]
[1764944271863,2.81769146,90511.0,90510.0,0.00099406]
[1764944273387,2.88021445,90511.0,90510.0,0.00099406]
[1764944273621,2.8691918,90511.0,90510.0,0.00099406]
[1764944274569,2.88005542,90511.0,90510.0,0.00099406]
[1764944274971,2.88005542,90511.0,90510.0,0.00019406]
[1764944275546,2.8691918,90511.0,90510.0,0.00019406]
[1764944276883,2.67944375,90511.0,90510.0,0.00019406]
[1764944277082,2.69696375,90511.0,90510.0,0.00019406]
[1764944278570,0.39743461,90511.0,90510.0,0.00019406]
[1764944278798,0.74648461,90511.0,90510.0,0.00019406]
[1764944279027,0.42348461,90511.0,90510.0,0.00019406]
[1764944279254,0.202517,90511.0,90510.0,0.22116411]
[1764944279479,0.525517,90511.0,90510.0,0.22116411]
[1764944279702,0.176467,90511.0,90510.0,0.22277698]
[1764944280008,0.01752,90511.0,90510.0,0.28186698]
[1764944280091,0.01535,90521.0,90510.0,0.28186698]
[1764944280092,0.695358,90521.0,90520.0,0.22094564]
[1764944280298,0.51214,90521.0,90520.0,0.24646851]
[1764944280524,0.01104569,90533.0,90527.0,0.23197424]
[1764944280753,0.22091086,90535.0,90534.0,0.23195498]
[1764944280754,0.101889,90535.0,90534.0,0.23195498]
[1764944280975,0.229217,90534.0,90533.0,0.22091211]
[1764944281233,0.01752,90535.0,90534.0,0.02391]
[1764944281455,0.23193642,90543.0,90538.0,0.01104508]
[1764944281456,0.01104447,90543.0,90538.0,0.01104508]
[1764944281666,0.01752,90541.0,90539.0,0.01104496]
[1764944282127,0.01752,90541.0,90539.0,0.23194338]
[1764944282560,0.01752,90541.0,90539.0,0.23194277]
[1764944282998,0.02856472,90541.0,90536.0,0.01104533]
[1764944283217,0.34152,90541.0,90539.0,0.22589763]
[1764944283430,0.58101684,90540.0,90539.0,0.005]
[1764944283661,0.62729081,90540.0,90539.0,0.005]
[1764944284597,0.34450397,90534.0,90528.0,0.0110463]
[1764944284802,0.02150397,90534.0,90528.0,0.0110463]
[1764944284984,0.0110463,90528.0,90523.0,0.01784]
[1764944285188,0.23197367,90528.0,90523.0,0.24982443]
[1764944286039,0.23197835,90526.0,90523.0,0.24982443]
[1764944286242,0.01104655,90526.0,90523.0,0.24982443]
[1764944286453,0.01104667,90525.0,90514.0,0.01104801]
[1764944286661,0.24244168,90524.0,90519.0,0.22094719]
[1764944286875,0.23198112,90525.0,90522.0,0.22093972]
[1764944287088,0.01104679,90524.0,90521.0,0.01104716]
[1764944287307,0.01104679,90524.0,90523.0,0.021]
[1764944287308,0.23198299,90524.0,90523.0,0.021]
[1764944287544,0.22094564,90520.0,90519.0,0.00161287]
[1764944287973,0.22094564,90520.0,90519.0,0.02361287]
[1764944288590,0.23198952,90522.0,90519.0,0.02361287]
[1764944288803,0.325,90524.0,90521.0,0.23199036]
[1764944289239,0.323,90524.0,90521.0,0.23199036]
[1764944289445,0.33604679,90524.0,90519.0,0.01266027]
[1764944289656,0.22094394,90521.0,90519.0,0.00161287]
[1764944290276,0.23012394,90521.0,90519.0,0.00161287]
[1764944290749,0.00918,90521.0,90519.0,0.24456075]
[1764944290952,0.00918,90521.0,90520.0,0.22094564]
[1764944291407,0.323,90524.0,90522.0,0.22093937]
[1764944291832,0.323,90525.0,90522.0,0.2319864]
[1764944292049,0.33404667,90525.0,90522.0,0.01104703]
[1764944292265,0.33404667,90525.0,90521.0,0.23198551]
[1764944292266,0.22093595,90524.0,90521.0,0.23198551]
[1764944292981,0.323,90526.0,90525.0,0.22093344]
[1764944293198,0.01952,90525.0,90523.0,0.25589491]
[1764944293401,0.02477,90524.0,90521.0,0.01266003]
[1764944293609,0.04627397,90522.0,90521.0,0.00161287]
[1764944293816,0.26721473,90522.0,90521.0,0.02261287]
[1764944294695,0.26721473,90522.0,90521.0,0.00161287]
[1764944296632,0.26921473,90522.0,90521.0,0.02261287]
[1764944299544,0.41603979,90522.0,90521.0,0.021]
[1764944299753,0.37891979,90522.0,90521.0,0.021]
[1764944300729,0.26921473,90522.0,90521.0,0.021]
[1764944303243,0.62933473,90522.0,90521.0,0.021]
[1764944305351,0.65300016,90522.0,90521.0,0.021]
[1764944305962,0.5439432,90521.0,90520.0,0.00011971]
[1764944306179,0.6460326,90521.0,90520.0,0.00011971]
[1764944306471,0.75573766,90521.0,90520.0,0.00011971]
[1764944307287,2.71617953,90521.0,90520.0,0.00011971]
[1764944307692,2.09136453,90521.0,90520.0,0.00411971]
[1764944307911,1.84561953,90521.0,90520.0,0.00411971]
[1764944308115,1.82411556,90521.0,90520.0,0.00411971]
[1764944308332,1.84561953,90521.0,90520.0,0.00411971]
[1764944308522,1.84562577,90521.0,90520.0,0.00411971]
[1764944309492,1.84362577,90521.0,90520.0,0.00411971]
[1764944309897,1.84662577,90521.0,90520.0,0.00411971]
[1764944310096,1.84562577,90521.0,90520.0,0.00011971]
[1764944310562,1.84562577,90521.0,90520.0,0.00211971]
[1764944311380,1.87521531,90521.0,90520.0,0.00211971]
[1764944312378,1.87521374,90521.0,90520.0,0.00211971]
[1764944313471,1.90814876,90521.0,90520.0,0.00211971]
[1764944313698,1.91919836,90521.0,90520.0,0.00211971]
[1764944319967,1.91919836,90521.0,90500.0,0.1004]
[1764944319968,0.242496,90501.0,90500.0,0.1004]
[1764944320183,2.71690759,90501.0,90500.0,0.1005198]
[1764944320392,2.73640253,90501.0,90500.0,0.1005198]
[1764944320602,2.76959569,90501.0,90500.0,0.1005198]
[1764944320812,2.8958681,90501.0,90500.0,0.1005198]
[1764944321209,2.8958681,90501.0,90500.0,0.1035198]
[1764944322122,2.85344634,90501.0,90500.0,0.1035198]
[1764944322334,2.87096634,90501.0,90500.0,0.1035198]
[1764944322957,2.91326107,90501.0,90500.0,0.1035198]
[1764944323140,2.87396634,90501.0,90500.0,0.1005198]
[1764944323344,2.87396634,90501.0,90500.0,0.1015198]
[1764944323546,2.9866714,90501.0,90500.0,0.1015198]
[1764944323960,2.9866714,90501.0,90500.0,0.0965198]
[1764944325147,2.27137734,90501.0,90500.0,0.0965198]
[1764944325350,2.25619722,90501.0,90500.0,0.0965198]
[1764944325547,2.25619722,90501.0,90500.0,0.09675747]
[1764944326141,2.22674634,90501.0,90500.0,0.09675747]
[1764944328308,2.22674634,90501.0,90500.0,0.00135747]
[1764944328508,2.3364514,90501.0,90500.0,0.00135747]
[1764944335396,1.95349037,90501.0,90500.0,0.00135747]
[1764944335611,1.90771104,90501.0,90500.0,0.00135747]
[1764944339345,1.94702459,90501.0,90500.0,0.00135747]
[1764944340424,2.56552042,90491.0,90490.0,0.0004]
[1764944340631,2.56552042,90491.0,90490.0,0.00051982]
[1764944340632,2.78407902,90491.0,90490.0,0.00051982]
[1764944341101,2.67437396,90491.0,90490.0,0.00051982]
[1764944341727,2.67737396,90491.0,90490.0,0.00151982]
[1764944342363,1.47571696,90491.0,90490.0,0.00151982]
[1764944346088,1.47571696,90491.0,90490.0,0.00181697]
[1764944346433,1.50515582,90491.0,90490.0,0.00181697]
[1764944346633,1.61486088,90491.0,90490.0,0.00181697]
[1764944347463,1.58542202,90491.0,90490.0,0.00181697]
[1764944349225,1.54639805,90491.0,90490.0,0.00181697]
[1764944349416,1.44412736,90491.0,90490.0,0.00181697]
[1764944349823,1.44410317,90491.0,90490.0,0.00181697]
[1764944351538,1.3995042,90491.0,90490.0,0.00181697]
[1764944353230,1.3601288,90491.0,90490.0,0.00181697]
[1764944353447,1.46983386,90491.0,90490.0,0.00181697]
[1764944353670,1.49133783,90491.0,90490.0,0.00181697]
[1764944353884,1.46983386,90491.0,90490.0,0.00181697]
[1764944354104,1.43922783,90491.0,90490.0,0.00181697]
[1764944354529,1.45674783,90491.0,90490.0,0.00181697]
[1764944354762,0.90047177,90491.0,90490.0,0.00181697]
[1764944354967,0.8964878,90491.0,90490.0,0.00181697]
[1764944355175,0.8294398,90491.0,90490.0,0.00181697]
[1764944355601,0.85094377,90491.0,90490.0,0.00181697]
[1764944355805,0.96194486,90491.0,90490.0,0.00081697]
[1764944356004,0.98044883,90491.0,90490.0,0.00081697]
[1764944356284,1.01603883,90491.0,90490.0,0.00081697]
[1764944356465,1.01503883,90491.0,90490.0,0.00081697]
[1764944356672,0.99353486,90491.0,90490.0,0.00081697]
[1764944356926,1.01503883,90491.0,90490.0,0.00081697]
[1764944357551,1.01803883,90491.0,90490.0,0.00081697]
[1764944357955,1.01603883,90491.0,90490.0,0.00381697]
[1764944358183,1.01803883,90491.0,90490.0,0.00381697]
[1764944358717,1.01803883,90491.0,90490.0,0.00081697]
[1764944358718,1.01503883,90491.0,90490.0,0.00081697]
[1764944358918,1.07756182,90491.0,90490.0,0.00081697]
[1764944359187,1.07756182,90491.0,90480.0,0.0004]
[1764944359188,2.62806784,90481.0,90480.0,0.0004]
[1764944359359,2.69998719,90481.0,90480.0,0.0004]
[1764944359694,2.30297854,90481.0,90480.0,0.0004]
[1764944359974,2.30740492,90481.0,90480.0,0.0004]
[1764944360325,2.34674536,90481.0,90480.0,0.0004]
[1764944360533,2.45645042,90481.0,90480.0,0.0004]
[1764944360732,2.26670237,90481.0,90480.0,0.0004]
[1764944360930,2.34674536,90481.0,90480.0,0.0004]
[1764944361140,2.30740492,90481.0,90480.0,0.0004]
[1764944361941,2.30840492,90481.0,90480.0,0.0004]
[1764944362142,2.3704299,90481.0,90480.0,0.0004]
[1764944362347,2.42110998,90481.0,90480.0,0.0004]
[1764944364780,2.42110998,90481.0,90480.0,0.00069719]
[1764944365435,2.48007938,90481.0,90480.0,1e-08]
[1764944365639,2.62808983,90472.0,90471.0,4.016e-05]
[1764944365863,2.68315918,90472.0,90471.0,4.016e-05]
[1764944366049,2.71535918,90472.0,90471.0,4.016e-05]
[1764944366197,2.75461216,90472.0,90471.0,4.016e-05]
[1764944366644,2.71535918,90472.0,90471.0,4.016e-05]
[1764944366841,2.82506424,90472.0,90471.0,4.016e-05]
[1764944367043,2.82506424,90472.0,90460.0,0.0004]
[1764944367044,2.62811671,90461.0,90460.0,0.0004]
[1764944367222,2.55390806,90461.0,90460.0,0.00079963]
[1764944367422,1.87720515,90461.0,90460.0,0.00079963]
[1764944367624,2.03033064,90461.0,90460.0,0.00079963]
[1764944368027,1.87720515,90461.0,90460.0,0.00079963]
[1764944368228,1.87720515,90461.0,90460.0,0.00179963]
[1764944368406,1.8937725,90461.0,90460.0,0.00179963]
[1764944368603,1.8782525,90461.0,90460.0,0.00179963]
[1764944368825,0.9015575,90461.0,90460.0,0.00179963]
[1764944369029,0.8563881,90461.0,90460.0,0.00179963]
[1764944369233,0.8739081,90461.0,90460.0,0.00179963]
[1764944370076,0.8950581,90461.0,90460.0,0.00179963]
[1764944370281,0.8563881,90461.0,90460.0,0.00179963]
[1764944370539,0.8739081,90461.0,90460.0,0.00179963]
[1764944371313,0.8739081,90461.0,90460.0,0.00239418]
[1764944371714,0.9272581,90461.0,90460.0,0.00239418]
[1764944371917,0.94876207,90461.0,90460.0,0.00239418]
[1764944372463,0.99338623,90461.0,90460.0,0.00239418]
[1764944372682,0.97223623,90461.0,90460.0,0.00239418]
[1764944373119,0.89541207,90461.0,90460.0,0.00239418]
[1764944373527,0.91656207,90461.0,90460.0,0.00239418]
[1764944373733,0.94876207,90461.0,90460.0,0.00239418]
[1764944374536,0.97228182,90461.0,90460.0,0.00239418]
[1764944375608,1.04501071,90461.0,90460.0,0.00239418]
[1764944375816,1.16584856,90461.0,90460.0,0.00239418]
[1764944376632,1.20502385,90461.0,90460.0,0.00239418]
[1764944376807,1.16384856,90461.0,90460.0,0.00239418]
[1764944377197,1.20501282,90461.0,90460.0,0.00139418]
[1764944377400,1.16884856,90461.0,90460.0,0.00239418]
[1764944377616,1.16684856,90461.0,90460.0,0.00239418]
[1764944377827,1.16384856,90461.0,90460.0,0.00139418]
[1764944378035,2.62814115,90451.0,90450.0,0.0958]
[1764944378237,2.79272186,90451.0,90450.0,0.09591996]
[1764944378451,2.79272186,90451.0,90400.0,0.0004]
[1764944378452,0.02115,90411.0,90400.0,0.0004]
[1764944378663,0.01471,90414.0,90400.0,0.00051987]
[1764944378664,1.19310446,90401.0,90400.0,0.00051987]
[1764944378873,0.88033782,90401.0,90400.0,0.00051987]
[1764944379102,0.75063649,90401.0,90400.0,0.00051987]
[1764944379513,0.77178649,90401.0,90400.0,0.00051987]
[1764944379716,0.79329046,90401.0,90400.0,0.00051987]
[1764944380160,0.77178649,90401.0,90400.0,0.00051987]
[1764944380391,0.51188,90401.0,90400.0,0.00051987]
[1764944380566,0.51188,90401.0,90400.0,0.02327987]
[1764944380567,0.323,90401.0,90400.0,0.02327987]
[1764944380775,0.22121936,90408.0,90400.0,0.02327987]
[1764944380776,0.219849,90410.0,90400.0,0.05869274]
[1764944380982,0.225957,90412.0,90409.0,0.23227688]
[1764944381189,0.01752,90411.0,90409.0,0.27192975]
[1764944381387,0.221466,90410.0,90409.0,0.03965287]
[1764944381801,0.238986,90410.0,90409.0,0.03965287]
[1764944382343,0.323,90418.0,90415.0,0.23226145]
[1764944382551,0.01681617,90420.0,90415.0,0.01267298]
[1764944382552,0.01105962,90419.0,90415.0,0.01267298]
[1764944382792,0.01105962,90419.0,90416.0,0.06697995]
[1764944383015,0.00575667,90420.0,90418.0,0.24556669]
[1764944383236,0.00575667,90420.0,90419.0,0.04649211]
[1764944383447,0.00575667,90420.0,90419.0,0.08029211]
[1764944383878,0.00575667,90420.0,90419.0,0.40329211]
[1764944384086,0.00575667,90420.0,90419.0,0.40267684]
[1764944384301,0.01752,90447.0,90444.0,0.01105656]
[1764944384536,0.01752,90447.0,90446.0,0.25440641]
[1764944384765,0.01752,90447.0,90446.0,0.25601928]
[1764944385015,0.01752,90447.0,90446.0,0.28981928]
[1764944385682,0.23217059,90451.0,90446.0,0.28981928]
[1764944385683,0.23215267,90458.0,90451.0,0.0110557]
[1764944385906,0.01105509,90456.0,90452.0,0.01105558]
[1764944386123,0.23215813,90456.0,90452.0,0.26757794]
[1764944386358,0.00011927,90461.0,90458.0,0.01105485]
[1764944386566,0.323,90459.0,90458.0,0.00161287]
[1764944386801,0.22109286,90460.0,90459.0,0.03415]
[1764944387016,0.22109286,90460.0,90459.0,0.03576287]
[1764944387205,0.22109286,90460.0,90459.0,0.05694287]
[1764944387416,0.00011927,90461.0,90459.0,0.05694287]
[1764944387627,0.00011927,90461.0,90460.0,0.05533]
[1764944388159,0.00011927,90461.0,90460.0,0.05694287]
[1764944388444,0.00011927,90461.0,90426.0,0.01707]
[1764944388445,0.01105815,90431.0,90426.0,0.01707]
[1764944388660,0.22115421,90435.0,90430.0,0.00161287]
[1764944388881,0.01752,90441.0,90435.0,0.02118]
[1764944389088,0.0110568,90442.0,90435.0,0.02118]
[1764944389089,0.22113733,90442.0,90435.0,0.00161287]
[1764944389286,0.22113388,90444.0,90441.0,0.03825]